Cogmind - Beta 16.1 @@@ ROGUE MODE // 2026.04.17 @ 21:14:54 Player: Ammie Result: Destroyed by D-53 Grenadier with Mini Grenade Launcher Performance ------------- Evolutions (0) 0 Regions Visited (2) 400 Robots Destroyed (25) 125 Value Destroyed (558) 558 Prototype IDs (1) 20 Alien Tech Used (0) 0 Bonus (-39) -39 TOTAL SCORE: 1064 Bonus ------- Friendly Fire -39 Cogmind --------- Core Integrity 0/250 Matter 260/300 Energy 99/100 System Corruption 0% Temperature Cool (0) Movement Core (800) Ox15 Location -10/Mines Parts ------- > --- POWER (1) -------- (None) > --- PROPULSION (2) --- (None) > --- UTILITY (2) ------ High-capacity Storage Unit > --- WEAPON (2) ------- Advanced Beam Cannon Light Cannon > --- INVENTORY (20) --- Light Ion Engine Heat Sink Small Storage Unit Large Storage Unit Hacking Suite Advanced Beam Cannon Light Assault Rifle Datajack Peak State ------------ > --- POWER ------------ Ion Engine > --- PROPULSION ------- Aluminum Leg Aluminum Leg > --- UTILITY ---------- Small Storage Unit Hardened Light Armor Plating > --- WEAPON ----------- Advanced Beam Cannon Advanced Beam Cannon > --- INVENTORY -------- Light Ion Engine Light Ion Engine Advanced Beam Cannon Light Assault Rifle Light Assault Rifle Light Assault Rifle Grenade Launcher Datajack [Rating: 13] Favorites ----------- Power Ion Engine Engine Ion Engine Propulsion Light Treads Treads Light Treads Leg Aluminum Leg Utility Heat Sink Device Heat Sink Storage High-capacity Storage Unit Protection Hardened Light Armor Plating Weapon Advanced Beam Cannon Energy Cannon Advanced Beam Cannon Ballistic Gun Light Assault Rifle Ballistic Cannon Light Cannon Launcher Grenade Launcher Build | -11 -10 -10 ------- Run | Yrd Mat Min Slots Evolved . | . . . Power . | . . . Propulsion . | . . . Utility . | . . . Weapon . | . . . Parts Attached 23 | 6 14 3 Power 4 | 1 3 . Engine 4 | 1 3 . Core . | . . . Reactor . | . . . Propulsion 6 | 2 4 . Treads 1 | . 1 . Leg 5 | 2 3 . Wheel . | . . . Hover . | . . . Flight . | . . . Utility 6 | 1 4 1 Device 2 | . 1 1 Storage 3 | 1 2 . Processor . | . . . Hackware . | . . . Protection 1 | . 1 . Artifact . | . . . Weapon 7 | 2 3 2 Energy Gun . | . . . Energy Cannon 3 | . 2 1 Ballistic Gun 2 | 2 . . Ballistic Cannon 1 | . 1 . Launcher 1 | . . 1 Special Weapon . | . . . Impact Weapon . | . . . Slashing Weapon . | . . . Piercing Weapon . | . . . Special Melee Weapon . | . . . Unidentified Prototypes 1 | . 1 . Parts Lost 5 | . 1 4 Power 1 | . . 1 Propulsion 2 | . 1 1 Utility 1 | . . 1 Weapon 1 | . . 1 Highest Loss Streak 4 | . 1 4 To Critical Strikes 1 | . . 1 Average Backups 7 | 1 7 8 Power 1 | . 1 1 Propulsion . | . . . Utility 2 | . 1 3 Weapon 3 | . 3 2 Tool/Special . | . . . Unused Backups 9 | . 5 4 Power 1 | . . 1 Propulsion 2 | . 2 . Utility 1 | . . 1 Weapon 4 | . 3 1 Tool/Special 1 | . . 1 Average Slot Usage (%) 86 | . 87 83 Engine 13 | . 14 13 Treads 10 | . 9 13 Leg 7 | . 9 . Device 10 | . 9 13 Storage 14 | . 14 14 Protection 1 | . 1 . Energy Cannon 16 | . 14 23 Ballistic Gun 3 | . 4 . Ballistic Cannon 7 | . 8 4 Peak Build Rating 13 | 6 13 13 Average Rating 9 | 5 9 11 On Entrance 5 | . 6 9 Avg Prop Armor Cover (%) 7 | . 7 . Naked Turns . | . . . Heaviest Build 54 | 10 53 54 Greatest Support 20 | 20 20 20 Greatest Overweight (x) 16 | 1 2 16 Average Overweight (x) 1 | . 1 2 Largest Inventory Capacity 20 | 8 20 20 Average Capacity 15 | 7 15 20 Most Carried 9 | 2 8 9 Average Carried 7 | 1 7 8 Final Capacity 20 | 8 20 20 Final Carried 8 | 2 8 8 Class Distribution -------------------- 100% | Mutant Dominant Class ---------------- Mutant | -10/Materials Mutant | -10/Mines Resources | -11 -10 -10 ----------- Run | Yrd Mat Min Matter Collected 525 | 254 231 40 Remotely . | . . . Salvage Created 814 | . 691 123 Parts 44 | . 43 1 Haulers Intercepted 2 | . 2 . Recyclers Shooed . | . . . Parts Field Recycled . | . . . Retrieved Matter . | . . . Parts Self-Destructed . | . . . Prevented . | . . . Parts Restored . | . . . Kills | -11 -10 -10 ------- Run | Yrd Mat Min Combat Hostiles Destroyed 28 | . 15 13 Guns 7 | . 7 . Cannons 12 | . 8 4 AOE 9 | . . 9 Classes Destroyed 7 | . 6 1 Worker 1 | . 1 . Hauler 2 | . 2 . Operator 2 | . 2 . Watcher 3 | . 3 . Swarmer 6 | . 6 . Grunt 11 | . 9 2 Assembled 11 | . . 11 Best Kill Streak 11 | . 3 11 Combat Bots Only 11 | . 3 11 Max Kills in Single Turn 4 | . 2 4 Gunslinging . | . . . Exploded 4 | . . 4 Melee . | . . . Uniques/NPCs Destroyed . | . . . Combat | -11 -10 -10 -------- Run | Yrd Mat Min Hostile Shots Fired 143 | . 91 52 Missed 43 | . 28 15 Hits 100 | . 63 37 Melee 2 | . . 2 Projectile 98 | . 63 35 AOE 7 | . . 7 Critical Strikes 2 | . . 2 Part Disruptions 1 | . . 1 Damage Taken 1313 | . 608 705 Core 262 | . 64 198 Absorbed by Shields . | . . . Core Remaining (%) 100 | 100 . . Volleys Fired 77 | . 65 12 Largest 2 | . 2 2 Hottest 136 | . 136 98 Shots Fired 150 | . 129 21 Gun 58 | . 58 . Cannon 88 | . 71 17 Launcher 4 | . . 4 Special . | . . . Kinetic 75 | . 70 5 Thermal 71 | . 59 12 Explosive 4 | . . 4 Electromagnetic . | . . . Robot Hit Streak 8 | . 8 6 Robot Miss Streak 5 | . 5 3 Penetration Max . | . . . Secondary Targets 2 | . 2 . Max Gunslinging Chain 1 | . 1 . Shots Hit Robots 76 | . 63 13 Core Hits 62 | . 33 29 Critical Kills 2 | . 2 . Critical Parts Destroyed . | . . . Critical Strikes 3 | . 3 . Meltdown 2 | . 2 . Blast 1 | . 1 . Melee Attacks . | . . . Impact . | . . . Slashing . | . . . Piercing . | . . . Sneak Attacks . | . . . Combat Hostiles . | . . . Follow-up Attacks . | . . . Damage Inflicted 2011 | . 957 1054 Guns 278 | . 278 . Cannons 903 | . 667 236 Explosions 818 | . . 818 Melee . | . . . Ramming 12 | . 12 . Kinetic 465 | . 413 52 Thermal 716 | . 532 184 Explosive 818 | . . 818 Electromagnetic . | . . . Impact . | . . . Slashing . | . . . Piercing . | . . . Highest Corruption . | . . . Average Corruption . | . . . Corruption Purged . | . . . Corruption Blocked . | . . . Overload Shots . | . . . Overflow Damage 11 | . 11 . Projectiles 11 | . 11 . Explosions . | . . . Melee . | . . . Knockbacks . | . . . Impact . | . . . Kinetic . | . . . Secondary . | . . . Self-Inflicted Damage 32 | . . 32 Shots 1 | . . 1 Rammed . | . . . Targets Rammed 7 | . 7 . Kicked 7 | . 7 . Crushed . | . . . Highest Temperature 469 | . 469 75 Average Temperature 124 | . 136 28 Received Heat Transfer 282 | . 135 147 Effects 1 | . 1 . Interference 1 | . 1 . Siege Activations . | . . . Martial Activations . | . . . Shielding Activations . | . . . Robots Disrupted . | . . . Combat Hostiles . | . . . Robots Corrupted . | . . . Combat Hostiles . | . . . Parts Fried . | . . . Impact Corruptions . | . . . Robots Melted 2 | . 2 . Combat Hostiles . | . . . Parts Melted 2 | . 2 . Heat Transferred 1295 | . 962 333 Parts Sabotaged . | . . . Parts Stolen . | . . . Parts Stripped . | . . . Power Chain Reactions . | . . . Alert | -11 -10 -10 ------- Run | Yrd Mat Min Maximum Alert Level . | . . . Low Security (%) 100 | 100 100 100 Level 1 . | . . . Level 2 . | . . . Level 3 . | . . . Level 4 . | . . . Level 5 . | . . . High Security . | . . . Max Security . | . . . Peak Influence 93 | . 93 40 Initial . | . . . Average 15 | . 18 2 Influence Increases 516 | . 440 76 Destroy 0b10 Robot/C 340 | . 300 40 Destroy 0b10 Robot/NC 50 | . 50 . Destroy Leader 90 | . 80 10 Successful Hack 9 | . 9 . Destroy Structure 27 | . 1 26 Influence Decreases 516 | . 440 76 Time Decay 488 | . 430 58 Lost Part 28 | . 10 18 Squads Dispatched 3 | . 3 . Investigation 1 | . 1 . Extermination . | . . . Reinforcement 2 | . 2 . Assault . | . . . Garrison . | . . . Intercept . | . . . Searches Triggered . | . . . Construction Impeded . | . . . Haulers Reinforced . | . . . Active Scanning Responses . | . . . Cargo Convoy Interrupts . | . . . Stealth | -11 -10 -10 --------- Run | Yrd Mat Min Distress Signals 2 | . 2 . Communications Jammed . | . . . Distress Signals . | . . . Times Spotted 50 | . 27 23 Peak Tracking Total 14 | . 6 14 Tactical Retreats . | . . . Traps | -11 -10 -10 ------- Run | Yrd Mat Min Traps Triggered 1 | . 1 . Indirectly . | . . . Trap Hack Attempts . | . . . Triggered . | . . . Disarmed . | . . . Reprogrammed . | . . . Reused . | . . . Traps Extracted . | . . . Installed . | . . . Triggered . | . . . Machines | -11 -10 -10 ---------- Run | Yrd Mat Min Machines Disabled . | . . . Max in Single Turn . | . . . Machines Repaired . | . . . Machines Dismantled . | . . . Machines Sabotaged . | . . . Overloaded Fab Kills . | . . . Hacking | -11 -10 -10 --------- Run | Yrd Mat Min Machines Accessed 7 | . 6 1 Terminals 6 | . 6 . Fabricators . | . . . Repair Stations . | . . . Recycling Units . | . . . Scanalyzers . | . . . Garrison Access . | . . . Total Hacks 14 | . 13 1 Successful 7 | . 6 1 Failed 7 | . 7 . Catastrophic . | . . . Database Lockouts . | . . . Manual 12 | . 12 . Terminals 13 | . 13 . Fabricators . | . . . Repair Stations . | . . . Recycling Units . | . . . Scanalyzers . | . . . Garrison Access . | . . . Terminal Hacks 2 | . 1 1 Open Door 1 | . . 1 Zone Layout 1 | . 1 . Fabricator Hacks . | . . . Repair Station Hacks . | . . . Recycling Unit Hacks . | . . . Scanalyzer . | . . . Garrison Access Hacks . | . . . Unauthorized Hacks 5 | . 5 . Terminals 5 | . 5 . Botnet 5 | . 5 . Fabricators . | . . . Repair Stations . | . . . Recycling Units . | . . . Scanalyzers . | . . . Garrison Access . | . . . Data Cores Recovered . | . . . Used . | . . . Hacking Detections 3 | . 3 . Full Trace Events . | . . . Feedback Events . | . . . Feedback Blocked . | . . . Robot Schematics Acquired . | . . . Robots Built . | . . . Authchips . | . . . Time . | . . . Total Robot Build Rating . | . . . Part Schematics Acquired . | . . . Parts Built . | . . . Authchips . | . . . Time . | . . . Total Part Build Rating . | . . . Part Studies Acquired . | . . . Parts Repaired . | . . . Time . | . . . Parts Recycled . | . . . Recycled Matter . | . . . Retrieved Matter . | . . . Retrieved Components . | . . . Parts Scanalyzed . | . . . Part Schematics Acquired . | . . . Parts Damaged . | . . . Bothacking | -11 -10 -10 ------------ Run | Yrd Mat Min Used RIF Installer . | . . . Robots Hacked . | . . . Non-combat . | . . . Combat . | . . . Robot Hacks Applied . | . . . Relay Couplers Released . | . . . Fabnet Peak Effective % . | . . . Robots Rewired . | . . . Allies Hacked . | . . . Hacks Repelled . | . . . Allies | -11 -10 -10 -------- Run | Yrd Mat Min Total Allies . | . . . Largest Group . | . . . Highest-Rated Group . | . . . Highest-Rated Ally . | . . . Total Orders . | . . . Ally Attacks . | . . . Total Damage . | . . . Kills . | . . . Allies Corrupted . | . . . Allies Melted . | . . . Intel | -11 -10 -10 ------- Run | Yrd Mat Min Active Infowar (turns) . | . . . Robot Analysis Total . | . . . Derelict Logs Recovered 3 | . . 3 Drone Launches . | . . . Drone Recoveries . | . . . Exploration | -11 -10 -10 ------------- Run | Yrd Mat Min Turns Passed 3852 | 73 3097 682 Spaces Moved 1471 | 55 1222 194 Core 8 | 5 . 3 Treads 869 | . 678 191 Legs 594 | 50 544 . Wheels . | . . . Hover . | . . . Flight . | . . . Fastest Speed 50 | 50 120 320 Average Speed 236 | 114 227 327 Slowest Speed 850 | 120 320 850 Overloaded Moves . | . . . Propulsion Burnouts . | . . . Robots Hopped . | . . . Potential Cave-ins . | . . . Cave-ins Triggered . | . . . Exploration Rate (%) 54 | 4 98 62 Regions Visited 2 Branch Regions 1 Pre-discovered Areas 1 | . . 1 Known Exits Taken . | . . . Unknown Exits Taken 2 | 1 1 . Scrap Searched . | . . . Spaces Dug . | . . . Terrain Destroyed 32 | . . 32 Melee . | . . . Projectile 1 | . . 1 AOE 31 | . . 31 Terrain Rammed . | . . . Walls Destroyed . | . . . Machines Disabled . | . . . Actions | -11 -10 -10 --------- Run | Yrd Mat Min Total 1701 | 62 1416 223 Wait 102 | . 89 13 Move 1469 | 54 1221 194 Hop . | . . . Pick Up 11 | 2 9 . Fast Attach 8 | 6 2 . Attach 1 | . . 1 Detach . | . . . Swap 15 | . 12 3 Drop 11 | . 11 . Fire 77 | . 65 12 Melee . | . . . Ram . | . . . Kick 7 | . 7 . Crush . | . . . Escape Stasis . | . . . Rewire . | . . . Trap . | . . . Miscellaneous . | . . . Route ------- -11/Scrapyard -10/Materials (discovered 6 exits: [*Mat x3] / *Min x2 / [*Sub]) -10/Mines History --------- Turn | Location | Event 28 | -11/Scrapyard | Discovered new exit (range 15) 74 | -11/Scrapyard | Entered Materials 308 | -10/Materials | Build established: Mutant 335 | -10/Materials | Discovered new exit (range 16) 828 | -10/Materials | Discovered new exit (range 13) 1025 | -10/Materials | Discovered new exit (range 6) 1239 | -10/Materials | Discovered new exit (range 7) 1409 | -10/Materials | Discovered new exit (range 14) 2644 | -10/Materials | Discovered new exit (range 16) 3171 | -10/Materials | Entered Mines 3460 | -10/Mines | Learned location of 1 exit from Materials 3492 | -10/Mines | Learned Materials stockpile data 3592 | -10/Mines | Found the Drone Emporium 3719 | -10/Mines | Learned location of Zion (-6) 3802 | -10/Mines | Assembled infested the area 3807 | -10/Mines | Assisted by a Guerilla fighting off Assembled 3828 | -10/Mines | Core integrity fell below 50% 3844 | -10/Mines | Core integrity fell below 20% 3853 | -10/Mines | Destroyed by D-53 Grenadier with Mini Grenade Launcher Last Messages --------------- 03822_ as-67941 destroyed. 03822_ Critical hit (Destroy). 03822_ Lgt. Treads destroyed. 03825_ The unstable cave ceiling collapses. 03826_ 1U-6A9(h) knocked back. 03826_ HV Slug penetrates as-59702. 03826_ as-59702 suffers critical hit (Destroy). 03826_ as-59702 destroyed. 03829_ as-44235 destroyed. 03831_ Grenade Launcher destroyed. 03834_ Knocked back. 03835_ 1U-6A9(h) destroyed. 03836_ Ion Engine destroyed. 03840_ as-36763 destroyed. 03840_ as-67198 destroyed. 03842_ as-20651 destroyed. 03842_ as-24978 destroyed. 03843_ Imp. Heat Sink destroyed. 03844_ The unstable cave ceiling collapses. 03852_ U-05 Engineer lays Concrete. Map ----- +----------------------------------------------------+ | ????????????????????????????????????? | | ????????????????????????????????????? | | ????????????????????????????????????? | | ????????????????????????????????????? | | ????????????????????????????????????? | | ????????????????????????????????????? | | ????????????????????????????????????? | | ????????????????????????????????????? | | ????????????????????????????????????? | | ????????????????????????????????????? | | ????????????????????????????????????? | | ????????????????????????????????????? | | ????????????????????????????????????? | | ????????????????????????????????????? | | ???????????????????????? ??????????? | | ??????????????????????? ?????????? | | ????????????????????## =u #????????? | | ??????????????????? % #????????? | | ?????????????###### % #???????? | | ?????######## !% ???????? | | ????## % % ???????? | | ????# d % #?????????? | | ????# d ##?????????? | | ?????# % #??????????? | | ?????## ###??????????? | | ??????## @ # ### #????????????? | | ???????# #?#????????????????? | | ???????## #??????????????????? | | ????????# ####????????????????? | | ????????### ## ?????????###????? | | ??????????# ##### ????????? ????? | | ??????????# ##### #????#? ????? | | ??????????# #????? ????? | | ??????????# ##### ##???# """ ?????? | | ??????????# #????? ###?# """ ??? | | ??????????# #?????? ## """ #??? | | ??????????# ######? #????? | | ?????????## ### #?????? | | ????????## """ ## ## #?????? | | ????????# """ ### #????## | | ????????# """ ##?# #?#### | | ????????## #### ####??# ### | | ?????????#### ##??# #?????# | | ????????????####???# #?????# | | ???????????????????# #?????## ## # | | ???????????????????# ######## ### ## | | ??????????????????## ## #?####? | | ????######??????### ######?????? | | ???##""""##????## ##??????????? | | ???#" ! "#???## ##???????????? | +----------------------------------------------------+ Best States ------------- Heat Dissipation 39 Energy Generation 10 Energy Capacity 250 Matter Stores 300 Matter Capacity 300 Sight Range 16 Terrain Scan Density 10 Armor Coverage 150 Evasion (%) 55 Recoil Reduction 1 Item Schematics ----------------- None Robot Schematics ------------------ None Fabricated ------------ Nothing Repaired ---------- Nothing Studied --------- None Alien Tech Used ----------------- None Achievements -------------- None Challenges ------------ None Game ------ Seed SlugNullWartreads Manual? 0 Play Time 00:14:17 Cumulative 62.5 hours Start 2026.04.17 @ 21:00:11 End 2026.04.17 @ 21:14:54 Sessions 1 Manual Loads 0 Difficulty Rogue Special Mode None Game No. 106 Rogue 106 Adventurer 0 Explorer 0 Win Type - Total 0 Types 0/0/0/0/0/0/0/0/0/0 Lore% 21 Gallery% 30 Achievement% 25 Wizard Run 0 Options --------- Layout 0 ASCII 0 Keyboard 0 Movement Mouse Keybinds 0 Fullscreen 1 Font 24/Smallcaps Map View 38x25 Zoom Use 99% Tactical HUD 1 Map Filters NONE Filters NONE Steam 1 RUN: bf5005d6-69cf-4292-98d5-d9c2b54bc37d